[Event "Late-Titled-Tuesday-Blitz-January-23-2024"]
[Site "Chess.com"]
[Date "2024.01.23"]
[Round "2"]
[White "cthulhuuu"]
[Black "ChessBrainiacOnTwitch"]
[Result "1-0"]
[WhiteElo "2440"]
[BlackElo "2788"]
[TimeControl "180+1"]
[EndTime "14:18:18 PST"]
[Termination "cthulhuuu won on time"]

1. e4 {[%clk 0:03:00]} 1... c5 {[%clk 0:02:59.3]} 2. Nf3 {[%clk 0:02:59.6]} 2...
d6 {[%clk 0:02:59.6]} 3. g3 {[%clk 0:02:59.8]} 3... Nf6 {[%clk 0:02:58.7]} 4. d3
{[%clk 0:03:00]} 4... g6 {[%clk 0:02:58.2]} 5. Bg2 {[%clk 0:03:00.3]} 5... Bg7
{[%clk 0:02:58.9]} 6. O-O {[%clk 0:03:01]} 6... O-O {[%clk 0:02:59.6]} 7. Re1
{[%clk 0:03:01.5]} 7... a6 {[%clk 0:02:57.1]} 8. e5 {[%clk 0:02:59.3]} 8... Nd5
{[%clk 0:02:36.1]} 9. exd6 {[%clk 0:02:55.4]} 9... exd6 {[%clk 0:02:37]} 10. d4
{[%clk 0:02:44.3]} 10... Nc6 {[%clk 0:02:31.8]} 11. c3 {[%clk 0:02:25.1]} 11...
Bf5 {[%clk 0:02:23.9]} 12. Bg5 {[%clk 0:02:02.8]} 12... Qd7 {[%clk 0:02:06.3]}
13. Qd2 {[%clk 0:02:03.1]} 13... Rfe8 {[%clk 0:02:05.9]} 14. Na3 {[%clk
0:02:03.1]} 14... b5 {[%clk 0:01:57.4]} 15. Bh6 {[%clk 0:01:38.5]} 15... Bh8
{[%clk 0:01:47]} 16. dxc5 {[%clk 0:01:03.7]} 16... dxc5 {[%clk 0:01:45.6]} 17.
Rad1 {[%clk 0:00:56.8]} 17... Rad8 {[%clk 0:01:26.5]} 18. Bg5 {[%clk 0:00:27]}
18... Nf6 {[%clk 0:01:08.5]} 19. Qxd7 {[%clk 0:00:14]} 19... Rxe1+ {[%clk
0:00:39.7]} 20. Nxe1 {[%clk 0:00:14.9]} 20... Rxd7 {[%clk 0:00:35.5]} 21. Rxd7
{[%clk 0:00:13.8]} 21... Bxd7 {[%clk 0:00:36.4]} 22. Nd3 {[%clk 0:00:13.2]}
22... c4 {[%clk 0:00:18.4]} 23. Nc5 {[%clk 0:00:13.3]} 23... Ne5 {[%clk
0:00:15.1]} 24. Nxa6 {[%clk 0:00:12.3]} 24... Nd3 {[%clk 0:00:15.1]} 25. Nb8
{[%clk 0:00:11.3]} 25... Be8 {[%clk 0:00:14.8]} 26. Bc6 {[%clk 0:00:11.2]} 26...
Bxc6 {[%clk 0:00:10.1]} 27. Nxc6 {[%clk 0:00:12.1]} 27... Nxb2 {[%clk
0:00:10.6]} 28. Nxb5 {[%clk 0:00:11.9]} 28... Ne4 {[%clk 0:00:10.7]} 29. Bh6
{[%clk 0:00:11.9]} 29... f5 {[%clk 0:00:09.7]} 30. Nbd4 {[%clk 0:00:11.5]} 30...
Nxc3 {[%clk 0:00:09.2]} 31. Ne6 {[%clk 0:00:10.6]} 31... Kf7 {[%clk 0:00:09.5]}
32. Ng5+ {[%clk 0:00:10.6]} 32... Ke8 {[%clk 0:00:10.2]} 33. Nxh7 {[%clk
0:00:10.8]} 33... Nd5 {[%clk 0:00:09]} 34. Na5 {[%clk 0:00:08.6]} 34... c3
{[%clk 0:00:09.1]} 35. Nb3 {[%clk 0:00:08.8]} 35... Nb4 {[%clk 0:00:05.6]} 36.
a3 {[%clk 0:00:08.5]} 36... N4d3 {[%clk 0:00:06.2]} 37. Ng5 {[%clk 0:00:08.3]}
37... Kd7 {[%clk 0:00:03.6]} 38. Nf3 {[%clk 0:00:08.1]} 38... Kc6 {[%clk
0:00:03.9]} 39. Nfd4+ {[%clk 0:00:07.5]} 39... Kd5 {[%clk 0:00:04.5]} 40. a4
{[%clk 0:00:06.9]} 40... Kc4 {[%clk 0:00:04.8]} 41. a5 {[%clk 0:00:06.9]} 41...
Bxd4 {[%clk 0:00:03]} 42. Nxd4 {[%clk 0:00:06.9]} 42... Kxd4 {[%clk 0:00:03.9]}
43. a6 {[%clk 0:00:07.4]} 43... Nc4 {[%clk 0:00:01.1]} 44. a7 {[%clk 0:00:07.7]}
44... Nb6 {[%clk 0:00:01.8]} 45. Be3+ {[%clk 0:00:08.2]} 45... Ke4 {[%clk
0:00:02.3]} 46. Bxb6 {[%clk 0:00:08.4]} 46... c2 {[%clk 0:00:02.7]} 47. a8=Q+
{[%clk 0:00:09.3]} 1-0

[Event "Late-Titled-Tuesday-Blitz-January-23-2024"]
[Site "Chess.com"]
[Date "2024.01.23"]
[Round "2"]
[White "platy3"]
[Black "AlexSuv"]
[Result "1-0"]
[WhiteElo "2874"]
[BlackElo "2571"]
[TimeControl "180+1"]
[EndTime "14:18:19 PST"]
[Termination "platy3 won by resignation"]

1. e4 {[%clk 0:03:00.9]} 1... c5 {[%clk 0:02:59.9]} 2. Nf3 {[%clk 0:03:01.1]}
2... d6 {[%clk 0:03:00.5]} 3. Bb5+ {[%clk 0:02:59.8]} 3... Bd7 {[%clk
0:02:57.3]} 4. Bxd7+ {[%clk 0:02:59.5]} 4... Qxd7 {[%clk 0:02:56.1]} 5. O-O
{[%clk 0:02:59.7]} 5... Nc6 {[%clk 0:02:55.2]} 6. Qe2 {[%clk 0:02:59.4]} 6... g6
{[%clk 0:02:53.8]} 7. c3 {[%clk 0:02:55.8]} 7... Bg7 {[%clk 0:02:53.6]} 8. Rd1
{[%clk 0:02:56.5]} 8... e5 {[%clk 0:02:53.4]} 9. d3 {[%clk 0:02:56]} 9... Nge7
{[%clk 0:02:53.4]} 10. a3 {[%clk 0:02:56.8]} 10... O-O {[%clk 0:02:52.7]} 11. b4
{[%clk 0:02:56.6]} 11... b6 {[%clk 0:02:53.4]} 12. Nbd2 {[%clk 0:02:54.2]} 12...
f5 {[%clk 0:02:53.1]} 13. Nc4 {[%clk 0:02:54.2]} 13... h6 {[%clk 0:02:49.2]} 14.
h3 {[%clk 0:02:47]} 14... Rad8 {[%clk 0:02:47]} 15. b5 {[%clk 0:02:43.5]} 15...
Nb8 {[%clk 0:02:42]} 16. a4 {[%clk 0:02:43.9]} 16... g5 {[%clk 0:02:11.6]} 17.
Ne3 {[%clk 0:02:36.1]} 17... Qe6 {[%clk 0:02:08.1]} 18. a5 {[%clk 0:02:07.7]}
18... Nd7 {[%clk 0:02:07.9]} 19. axb6 {[%clk 0:02:07.7]} 19... axb6 {[%clk
0:02:08.8]} 20. Qa2 {[%clk 0:02:03.8]} 20... d5 {[%clk 0:01:28.7]} 21. Nxd5
{[%clk 0:01:58.5]} 21... Nxd5 {[%clk 0:01:28.7]} 22. Qxd5 {[%clk 0:01:33.4]}
22... Qxd5 {[%clk 0:01:28.6]} 23. exd5 {[%clk 0:01:34.3]} 23... e4 {[%clk
0:01:29.5]} 24. dxe4 {[%clk 0:01:35]} 24... fxe4 {[%clk 0:01:30.4]} 25. Nd2
{[%clk 0:01:35.4]} 25... Bxc3 {[%clk 0:01:26.2]} 26. Ra6 {[%clk 0:01:12.9]}
26... Nf6 {[%clk 0:01:22.2]} 27. Nc4 {[%clk 0:00:50.4]} 27... Rxd5 {[%clk
0:01:20.6]} 28. Rxd5 {[%clk 0:00:50.1]} 28... Nxd5 {[%clk 0:01:21.5]} 29. Nxb6
{[%clk 0:00:50.2]} 29... Nb4 {[%clk 0:00:54.6]} 30. Ra3 {[%clk 0:00:45.5]} 30...
Bd4 {[%clk 0:00:54.1]} 31. Be3 {[%clk 0:00:45.8]} 31... Nc2 {[%clk 0:00:54.4]}
32. Rb3 {[%clk 0:00:44.2]} 32... Rd8 {[%clk 0:00:34.3]} 33. Nc4 {[%clk
0:00:42.6]} 33... Bxe3 {[%clk 0:00:33.1]} 34. fxe3 {[%clk 0:00:43]} 34... Nb4
{[%clk 0:00:31.2]} 35. b6 {[%clk 0:00:41.8]} 35... Rd7 {[%clk 0:00:30.6]} 36.
Ra3 {[%clk 0:00:41.8]} 36... Kf7 {[%clk 0:00:28.6]} 37. Ra7 {[%clk 0:00:41.7]}
37... Ke6 {[%clk 0:00:29.3]} 38. b7 {[%clk 0:00:39.8]} 38... Nc6 {[%clk
0:00:18.2]} 39. Ra6 {[%clk 0:00:17.3]} 39... Rxb7 {[%clk 0:00:18.3]} 40. Rxc6+
{[%clk 0:00:18]} 40... Kd5 {[%clk 0:00:19]} 41. Rb6 {[%clk 0:00:18.6]} 41... Ra7
{[%clk 0:00:16.1]} 42. Nd2 {[%clk 0:00:18.4]} 42... Ra2 {[%clk 0:00:16.2]} 43.
Rb8 {[%clk 0:00:17.6]} 43... Rxd2 {[%clk 0:00:05.5]} 44. Rd8+ {[%clk 0:00:17.3]}
44... Kc4 {[%clk 0:00:06.4]} 45. Rxd2 {[%clk 0:00:17.6]} 45... Kc3 {[%clk
0:00:07.3]} 46. Rd8 {[%clk 0:00:17.1]} 46... c4 {[%clk 0:00:07.6]} 47. Kf2
{[%clk 0:00:17.5]} 47... Kb2 {[%clk 0:00:08.3]} 48. Ke2 {[%clk 0:00:17.4]} 48...
c3 {[%clk 0:00:09.2]} 49. Rb8+ {[%clk 0:00:17.7]} 49... Kc1 {[%clk 0:00:09.2]}
50. Rc8 {[%clk 0:00:16]} 50... Kb2 {[%clk 0:00:08.5]} 51. g4 {[%clk 0:00:16]}
51... Kc2 {[%clk 0:00:08.3]} 52. Rc4 {[%clk 0:00:15.1]} 52... Kb3 {[%clk
0:00:08.5]} 53. Rxe4 {[%clk 0:00:13.4]} 53... c2 {[%clk 0:00:07.7]} 54. Kd2
{[%clk 0:00:13.8]} 54... Kb2 {[%clk 0:00:08]} 55. Rb4+ {[%clk 0:00:13.8]} 1-0

[Event "Late-Titled-Tuesday-Blitz-January-23-2024"]
[Site "Chess.com"]
[Date "2024.01.23"]
[Round "2"]
[White "KNVB"]
[Black "PoXerStar"]
[Result "1-0"]
[WhiteElo "2749"]
[BlackElo "2434"]
[TimeControl "180+1"]
[EndTime "14:18:22 PST"]
[Termination "KNVB won by resignation"]

1. d4 {[%clk 0:03:00.3]} 1... Nf6 {[%clk 0:02:57.1]} 2. Bf4 {[%clk 0:03:00.5]}
2... c5 {[%clk 0:02:56]} 3. e3 {[%clk 0:02:59.6]} 3... Qb6 {[%clk 0:02:53.9]} 4.
Nc3 {[%clk 0:02:50.4]} 4... Qxb2 {[%clk 0:02:23.9]} 5. Nb5 {[%clk 0:02:50.5]}
5... Nd5 {[%clk 0:02:24.5]} 6. Rb1 {[%clk 0:02:49.9]} 6... Qxa2 {[%clk
0:02:18.1]} 7. Ra1 {[%clk 0:02:47.5]} 7... Qb2 {[%clk 0:02:17.9]} 8. Rb1 {[%clk
0:02:45.2]} 8... Qa2 {[%clk 0:02:18]} 9. c4 {[%clk 0:02:45.5]} 9... Nxf4 {[%clk
0:01:55.5]} 10. Nc7+ {[%clk 0:02:45.4]} 10... Kd8 {[%clk 0:01:54.7]} 11. Nxa8
{[%clk 0:02:46.3]} 11... Ng6 {[%clk 0:01:21.1]} 12. h4 {[%clk 0:02:38.7]} 12...
h5 {[%clk 0:01:04.2]} 13. Nf3 {[%clk 0:02:35.6]} 13... e6 {[%clk 0:00:52.7]} 14.
Ng5 {[%clk 0:02:17.7]} 14... cxd4 {[%clk 0:00:41.5]} 15. Nxf7+ {[%clk
0:01:43.4]} 15... Ke8 {[%clk 0:00:41.4]} 16. Nxh8 {[%clk 0:01:44.3]} 16... Nc6
{[%clk 0:00:39.3]} 17. Nxg6 {[%clk 0:01:03.9]} 17... Bb4+ {[%clk 0:00:34]} 18.
Rxb4 {[%clk 0:01:03.8]} 18... Nxb4 {[%clk 0:00:34.9]} 19. Be2 {[%clk 0:01:04.6]}
19... Nc2+ {[%clk 0:00:26.6]} 20. Kf1 {[%clk 0:01:04.8]} 20... dxe3 {[%clk
0:00:26.9]} 21. Nc7+ {[%clk 0:00:54.8]} 21... Kf7 {[%clk 0:00:22.7]} 22. Ne5+
{[%clk 0:00:24.2]} 22... Kg8 {[%clk 0:00:22.7]} 23. Rh3 {[%clk 0:00:20.4]} 23...
exf2 {[%clk 0:00:20.6]} 24. Kxf2 {[%clk 0:00:16.8]} 24... Qb2 {[%clk 0:00:10.8]}
25. Qd6 {[%clk 0:00:11.6]} 25... Nd4 {[%clk 0:00:05.8]} 26. Re3 {[%clk
0:00:07.6]} 26... Nf5 {[%clk 0:00:05.4]} 27. Qd3 {[%clk 0:00:04.5]} 27... Nxe3
{[%clk 0:00:05.5]} 28. Qxe3 {[%clk 0:00:05.2]} 28... d6 {[%clk 0:00:04.8]} 29.
Nf3 {[%clk 0:00:04.6]} 29... e5 {[%clk 0:00:04.9]} 30. Nd5 {[%clk 0:00:04.2]}
30... Bg4 {[%clk 0:00:05.2]} 31. Kg3 {[%clk 0:00:04]} 31... b6 {[%clk
0:00:02.3]} 32. Ng1 {[%clk 0:00:03.2]} 32... Qd4 {[%clk 0:00:01.3]} 33. Qxd4
{[%clk 0:00:03.2]} 33... exd4 {[%clk 0:00:02]} 34. Bxg4 {[%clk 0:00:03.9]} 34...
hxg4 {[%clk 0:00:02.7]} 35. Ne2 {[%clk 0:00:03.9]} 35... Kf7 {[%clk 0:00:03.3]}
36. Nxd4 {[%clk 0:00:04.3]} 36... Ke8 {[%clk 0:00:02.4]} 37. Kxg4 {[%clk
0:00:04.8]} 37... Kd7 {[%clk 0:00:03.3]} 38. Kg5 {[%clk 0:00:05.1]} 38... b5
{[%clk 0:00:04.2]} 39. cxb5 {[%clk 0:00:05.5]} 39... Kc8 {[%clk 0:00:03.9]} 40.
Kg6 {[%clk 0:00:06]} 40... Kb7 {[%clk 0:00:04.8]} 41. Kxg7 {[%clk 0:00:06.5]}
41... a6 {[%clk 0:00:05.7]} 42. bxa6+ {[%clk 0:00:07]} 42... Kxa6 {[%clk
0:00:06.6]} 43. g4 {[%clk 0:00:07.3]} 43... Ka5 {[%clk 0:00:07.1]} 44. g5 {[%clk
0:00:07.8]} 44... Ka4 {[%clk 0:00:08]} 45. Kf6 {[%clk 0:00:08.3]} 45... Ka3
{[%clk 0:00:08.4]} 46. Ke6 {[%clk 0:00:09]} 46... Ka2 {[%clk 0:00:09.3]} 47.
Kxd6 {[%clk 0:00:09.8]} 47... Kb2 {[%clk 0:00:10.2]} 48. g6 {[%clk 0:00:10.5]}
48... Kc1 {[%clk 0:00:09.7]} 49. Ke5 {[%clk 0:00:10.8]} 49... Kd1 {[%clk
0:00:10.6]} 50. h5 {[%clk 0:00:11.5]} 50... Ke1 {[%clk 0:00:11.5]} 51. h6 {[%clk
0:00:12.3]} 51... Kf1 {[%clk 0:00:12.4]} 52. g7 {[%clk 0:00:13.1]} 52... Kg1
{[%clk 0:00:13.3]} 53. h7 {[%clk 0:00:13.8]} 53... Kh1 {[%clk 0:00:14.2]} 54.
h8=N {[%clk 0:00:13.9]} 54... Kg1 {[%clk 0:00:15.1]} 55. g8=N {[%clk 0:00:14.2]}
55... Kf1 {[%clk 0:00:16]} 56. Ndf6 {[%clk 0:00:14.1]} 56... Ke1 {[%clk
0:00:16.9]} 57. Ne4 {[%clk 0:00:14.8]} 57... Kd1 {[%clk 0:00:17.3]} 58. Ngf6
{[%clk 0:00:15.7]} 58... Kc1 {[%clk 0:00:18.2]} 59. Nh5 {[%clk 0:00:16.6]} 59...
Kb1 {[%clk 0:00:19.1]} 60. Nf4 {[%clk 0:00:17.5]} 60... Kb2 {[%clk 0:00:19.9]}
61. Nhg6 {[%clk 0:00:18.4]} 61... Ka3 {[%clk 0:00:20.4]} 62. Kd5 {[%clk
0:00:19.3]} 62... Ka4 {[%clk 0:00:21.3]} 63. Kc6 {[%clk 0:00:19.8]} 63... Ka5
{[%clk 0:00:22.2]} 64. Kb7 {[%clk 0:00:19.5]} 64... Ka4 {[%clk 0:00:22.7]} 65.
Kb6 {[%clk 0:00:19]} 65... Ka3 {[%clk 0:00:23.6]} 66. Kb5 {[%clk 0:00:19.2]}
66... Ka2 {[%clk 0:00:24.5]} 67. Kb4 {[%clk 0:00:19.5]} 67... Kb1 {[%clk
0:00:25.4]} 68. Nd3 {[%clk 0:00:17.3]} 1-0

[Event "Late-Titled-Tuesday-Blitz-January-23-2024"]
[Site "Chess.com"]
[Date "2024.01.23"]
[Round "2"]
[White "cristiano78"]
[Black "WPWPWP-2015"]
[Result "1/2-1/2"]
[WhiteElo "2225"]
[BlackElo "2480"]
[TimeControl "180+1"]
[EndTime "14:18:23 PST"]
[Termination "Game drawn by repetition"]

1. d4 {[%clk 0:03:00.9]} 1... Nf6 {[%clk 0:02:59.1]} 2. c4 {[%clk 0:03:00.1]}
2... e6 {[%clk 0:02:52.8]} 3. Nf3 {[%clk 0:02:59.4]} 3... b6 {[%clk 0:02:51.6]}
4. g3 {[%clk 0:02:57.7]} 4... Bb7 {[%clk 0:02:51.2]} 5. Bg2 {[%clk 0:02:56.9]}
5... Be7 {[%clk 0:02:51.1]} 6. O-O {[%clk 0:02:56.1]} 6... O-O {[%clk
0:02:51.2]} 7. Nc3 {[%clk 0:02:56.6]} 7... d5 {[%clk 0:02:49.4]} 8. Ne5 {[%clk
0:02:55]} 8... Nbd7 {[%clk 0:02:48.4]} 9. cxd5 {[%clk 0:02:50.1]} 9... exd5
{[%clk 0:02:45.1]} 10. Be3 {[%clk 0:02:40.6]} 10... c6 {[%clk 0:02:42.1]} 11. h3
{[%clk 0:02:39]} 11... Ne8 {[%clk 0:02:41.5]} 12. Rc1 {[%clk 0:02:37.1]} 12...
Nd6 {[%clk 0:02:39.5]} 13. b3 {[%clk 0:02:35.2]} 13... f6 {[%clk 0:02:36.7]} 14.
Nxd7 {[%clk 0:02:34.4]} 14... Qxd7 {[%clk 0:02:36.6]} 15. f4 {[%clk 0:02:33.4]}
15... Rae8 {[%clk 0:02:33.5]} 16. Bf2 {[%clk 0:02:32.9]} 16... f5 {[%clk
0:02:32]} 17. Qd2 {[%clk 0:02:28]} 17... Bf6 {[%clk 0:02:30.6]} 18. e3 {[%clk
0:02:26.8]} 18... Re7 {[%clk 0:02:24.7]} 19. Rfe1 {[%clk 0:02:25.4]} 19... Rfe8
{[%clk 0:02:24.4]} 20. Bf3 {[%clk 0:02:19.8]} 20... g6 {[%clk 0:02:22.9]} 21. g4
{[%clk 0:02:13]} 21... Bc8 {[%clk 0:02:17.5]} 22. g5 {[%clk 0:02:12.1]} 22...
Bg7 {[%clk 0:02:16.5]} 23. h4 {[%clk 0:02:06.3]} 23... Bb7 {[%clk 0:02:10.9]}
24. Qd1 {[%clk 0:01:58.3]} 24... Ne4 {[%clk 0:01:59.5]} 25. Nxe4 {[%clk
0:01:55.8]} 25... Rxe4 {[%clk 0:01:58.9]} 26. Bxe4 {[%clk 0:01:52.9]} 26... fxe4
{[%clk 0:01:40.7]} 27. Kg2 {[%clk 0:01:51.5]} 27... Bc8 {[%clk 0:01:37.3]} 28.
Rh1 {[%clk 0:01:50.3]} 28... Bf8 {[%clk 0:01:25.5]} 29. h5 {[%clk 0:01:49.4]}
29... Qd6 {[%clk 0:01:19.2]} 30. hxg6 {[%clk 0:01:47.2]} 30... hxg6 {[%clk
0:01:18.9]} 31. Rh4 {[%clk 0:01:41.4]} 31... Bf5 {[%clk 0:01:13]} 32. Qd2 {[%clk
0:01:37]} 32... a5 {[%clk 0:01:09.5]} 33. Rch1 {[%clk 0:01:34.4]} 33... Bg7
{[%clk 0:01:09]} 34. Be1 {[%clk 0:01:15.5]} 34... Rd8 {[%clk 0:01:03.9]} 35. Qf2
{[%clk 0:01:11]} 35... Rd7 {[%clk 0:01:01.3]} 36. Rh7 {[%clk 0:01:09.7]} 36...
Qa3 {[%clk 0:00:57.6]} 37. Qh4 {[%clk 0:00:52.3]} 37... Qxa2+ {[%clk 0:00:46.2]}
38. Bf2 {[%clk 0:00:51.3]} 38... Qe2 {[%clk 0:00:41.7]} 39. Rxg7+ {[%clk
0:00:29.2]} 39... Rxg7 {[%clk 0:00:40.7]} 40. Qh8+ {[%clk 0:00:28.5]} 40... Kf7
{[%clk 0:00:40.6]} 41. Qb8 {[%clk 0:00:20.3]} 41... Qg4+ {[%clk 0:00:37.6]} 42.
Kf1 {[%clk 0:00:19.8]} 42... Qd1+ {[%clk 0:00:35.5]} 43. Kg2 {[%clk 0:00:19.3]}
43... Qf3+ {[%clk 0:00:29.5]} 44. Kg1 {[%clk 0:00:18.5]} 44... Qg4+ {[%clk
0:00:27.9]} 45. Kf1 {[%clk 0:00:18.4]} 45... Bd7 {[%clk 0:00:25]} 46. Rh8 {[%clk
0:00:16.4]} 46... Qd1+ {[%clk 0:00:20.6]} 47. Kg2 {[%clk 0:00:15.7]} 47... Qf3+
{[%clk 0:00:20]} 48. Kg1 {[%clk 0:00:15.1]} 48... Qg4+ {[%clk 0:00:12.1]} 49.
Kf1 {[%clk 0:00:14.3]} 49... Qd1+ {[%clk 0:00:11]} 50. Kg2 {[%clk 0:00:14.3]}
50... Qf3+ {[%clk 0:00:06.9]} 51. Kg1 {[%clk 0:00:14]} 51... Qg4+ {[%clk
0:00:05.1]} 52. Kh1 {[%clk 0:00:12.8]} 52... Qf3+ {[%clk 0:00:03.6]} 53. Kg1
{[%clk 0:00:13]} 1/2-1/2

[Event "Late-Titled-Tuesday-Blitz-January-23-2024"]
[Site "Chess.com"]
[Date "2024.01.23"]
[Round "2"]
[White "Byniolus"]
[Black "santosalberto1987"]
[Result "1-0"]
[WhiteElo "2872"]
[BlackElo "2566"]
[TimeControl "180+1"]
[EndTime "14:18:24 PST"]
[Termination "Byniolus won on time"]

1. d4 {[%clk 0:03:00.9]} 1... Nf6 {[%clk 0:02:59.9]} 2. Nf3 {[%clk 0:03:01.1]}
2... d6 {[%clk 0:02:59.4]} 3. Bf4 {[%clk 0:03:01.3]} 3... g6 {[%clk 0:02:58.5]}
4. e3 {[%clk 0:03:01.6]} 4... Bg7 {[%clk 0:02:57.3]} 5. h3 {[%clk 0:03:02]} 5...
O-O {[%clk 0:02:56.5]} 6. Be2 {[%clk 0:03:02.7]} 6... b6 {[%clk 0:02:51.5]} 7.
O-O {[%clk 0:03:02.6]} 7... Bb7 {[%clk 0:02:49.9]} 8. a4 {[%clk 0:03:02.6]} 8...
a6 {[%clk 0:02:47]} 9. c3 {[%clk 0:03:02.9]} 9... Nbd7 {[%clk 0:02:31.1]} 10.
Nbd2 {[%clk 0:03:02.3]} 10... Re8 {[%clk 0:02:26.7]} 11. Bh2 {[%clk 0:03:02]}
11... e5 {[%clk 0:02:26.2]} 12. Qb3 {[%clk 0:03:02.1]} 12... Qe7 {[%clk
0:02:16.5]} 13. Rfd1 {[%clk 0:03:00.4]} 13... Ne4 {[%clk 0:02:01.1]} 14. Nxe4
{[%clk 0:02:40.2]} 14... Bxe4 {[%clk 0:02:02]} 15. Nd2 {[%clk 0:02:40.9]} 15...
Bb7 {[%clk 0:02:00.6]} 16. Bf3 {[%clk 0:02:41.3]} 16... Bxf3 {[%clk 0:01:46.3]}
17. Nxf3 {[%clk 0:02:42.2]} 17... e4 {[%clk 0:01:46.8]} 18. Nd2 {[%clk
0:02:41.8]} 18... Kh8 {[%clk 0:01:42.2]} 19. c4 {[%clk 0:02:35.7]} 19... f5
{[%clk 0:01:41.9]} 20. a5 {[%clk 0:02:35.3]} 20... Reb8 {[%clk 0:01:36.5]} 21.
axb6 {[%clk 0:02:32.1]} 21... Rxb6 {[%clk 0:01:36.3]} 22. Qa3 {[%clk 0:02:31.9]}
22... Qf7 {[%clk 0:01:24]} 23. b4 {[%clk 0:02:19.1]} 23... g5 {[%clk 0:01:12.6]}
24. c5 {[%clk 0:02:08.4]} 24... dxc5 {[%clk 0:01:08.5]} 25. bxc5 {[%clk
0:02:09.3]} 25... Rg6 {[%clk 0:00:58.9]} 26. Qb3 {[%clk 0:01:55.3]} 26... Qxb3
{[%clk 0:00:52.5]} 27. Nxb3 {[%clk 0:01:55.1]} 27... c6 {[%clk 0:00:53.4]} 28.
Bd6 {[%clk 0:01:42.8]} 28... Nf6 {[%clk 0:00:52.4]} 29. Na5 {[%clk 0:01:41]}
29... Rc8 {[%clk 0:00:50.2]} 30. Nc4 {[%clk 0:01:38.8]} 30... Ne8 {[%clk
0:00:48]} 31. Rxa6 {[%clk 0:01:33.1]} 31... h5 {[%clk 0:00:45.8]} 32. Rda1
{[%clk 0:01:26.3]} 32... f4 {[%clk 0:00:45.4]} 33. Ra8 {[%clk 0:01:24.5]} 33...
Rxa8 {[%clk 0:00:42.3]} 34. Rxa8 {[%clk 0:01:23.9]} 34... Re6 {[%clk 0:00:43.2]}
35. Ne5 {[%clk 0:00:59.6]} 35... Kh7 {[%clk 0:00:40.7]} 36. Rd8 {[%clk
0:00:40.8]} 36... Bxe5 {[%clk 0:00:26.5]} 37. Bxe5 {[%clk 0:00:39.9]} 37... fxe3
{[%clk 0:00:23.2]} 38. fxe3 {[%clk 0:00:40.8]} 38... Kg6 {[%clk 0:00:23.4]} 39.
Kf2 {[%clk 0:00:22.6]} 39... Nf6 {[%clk 0:00:23.5]} 40. Bxf6 {[%clk 0:00:17.5]}
40... Kxf6 {[%clk 0:00:21.8]} 41. g4 {[%clk 0:00:13.5]} 41... hxg4 {[%clk
0:00:20.6]} 42. hxg4 {[%clk 0:00:14.4]} 42... Ke7 {[%clk 0:00:18.7]} 43. Rg8
{[%clk 0:00:14.5]} 43... Kf6 {[%clk 0:00:18.3]} 44. Ke2 {[%clk 0:00:13.7]} 44...
Re7 {[%clk 0:00:16.8]} 45. Rc8 {[%clk 0:00:13.5]} 45... Re6 {[%clk 0:00:16.8]}
46. Kd2 {[%clk 0:00:14.1]} 46... Ke7 {[%clk 0:00:16.9]} 47. Rg8 {[%clk 0:00:13]}
47... Kf6 {[%clk 0:00:16.9]} 48. Kc3 {[%clk 0:00:12.8]} 48... Re7 {[%clk
0:00:16.7]} 49. Rc8 {[%clk 0:00:13]} 49... Re6 {[%clk 0:00:16.9]} 50. Kc4 {[%clk
0:00:12.1]} 50... Kg6 {[%clk 0:00:16.9]} 51. Rd8 {[%clk 0:00:10.2]} 51... Kf7
{[%clk 0:00:13.8]} 52. Rd6 {[%clk 0:00:10.1]} 1-0